fUST/lending_fUST_20250602
["ID","MTS","AMOUNT","RATE_DAILY","PERIOD"]
[363647281,1748797842661,-786.52,0.00020821,2]
[363647283,1748797842672,-430.0,0.00020821,2]
[363647285,1748797842681,-874.47,0.00020821,2]
[363647287,1748797842690,-918.9,0.00020821,2]
[363647289,1748797842700,-430.0,0.00020821,2]
[363647291,1748797842709,-327.92,0.00020821,2]
[363647293,1748797842719,-2076.33,0.00020821,2]
[363647295,1748797842728,-641.66,0.00020821,2]
[363647297,1748797842737,-430.0,0.00020821,2]
[363647299,1748797842747,-733.18,0.00020821,2]
[363647301,1748797842756,-430.0,0.00020821,2]
[363647303,1748797842765,-151.0,0.000209,4]
[363647305,1748797842775,-3000.0,0.00021,2]
[363647307,1748797842784,-1350.0,0.00021,2]
[363647309,1748797842793,-34050.03747532,0.00021,2]
[363647311,1748797842802,-3283.61779182,0.00021003,4]
[363647313,1748797842815,-3000.0,0.0002101,2]
[363647315,1748797842825,-3000.0,0.0002102,2]
[363647317,1748797842835,-3000.0,0.0002103,2]
[363647319,1748797842844,-3000.0,0.0002104,2]
[363647321,1748797842853,-3000.0,0.0002105,2]
[363647323,1748797842863,-3000.0,0.0002106,2]
[363647325,1748797842872,-3000.0,0.0002107,2]
[363647327,1748797842882,-3000.0,0.0002108,2]
[363647330,1748797842892,-3000.0,0.0002109,2]
[363647333,1748797842902,-642.99,0.00021095,2]
[363647335,1748797842911,-786.52,0.00021095,2]
[363647337,1748797842922,-430.0,0.00021095,2]
[363647339,1748797842931,-874.47,0.00021095,2]
[363647341,1748797842941,-918.9,0.00021095,2]
[363647343,1748797842950,-430.0,0.00021095,2]
[363647345,1748797842960,-2076.33,0.00021095,2]
[363647347,1748797842969,-641.66,0.00021095,2]
[363647349,1748797842979,-430.0,0.00021095,2]
[363647350,1748797842988,-733.18,0.00021095,2]
[363647351,1748797842997,-430.0,0.00021095,2]
[363647352,1748797843007,-3000.0,0.000211,2]
[363647353,1748797843016,-3000.0,0.0002111,2]
[363647354,1748797843025,-3000.0,0.0002112,2]
[363647355,1748797843035,-3000.0,0.0002113,2]
[363647356,1748797843044,-3000.0,0.0002114,2]
[363647357,1748797843054,-3000.0,0.0002115,2]
[363647358,1748797843063,-3000.0,0.0002116,2]
[363647359,1748797843073,-3000.0,0.0002117,2]
[363647360,1748797843082,-3000.0,0.0002118,2]
[363647361,1748797843092,-3000.0,0.0002119,2]
[363647362,1748797843101,-3000.0,0.000212,2]
[363647363,1748797843111,-649.21402904,0.000212,2]
[363647364,1748797843120,-500.0,0.000212,2]
[363647365,1748797843129,-3000.0,0.0002121,2]
[363647366,1748797843139,-3000.0,0.0002122,2]
[363647367,1748797843148,-3000.0,0.0002123,2]
[363647368,1748797843158,-3000.0,0.0002124,2]
[363647370,1748797843167,-3283.61779182,0.00021245,4]
[363647372,1748797843178,-3000.0,0.0002125,2]
[363647374,1748797843189,-3000.0,0.0002126,2]
[363647376,1748797843199,-3000.0,0.0002127,2]
[363647379,1748797843210,-1916.38,0.00021278,2]
[363647381,1748797843220,-3000.0,0.0002128,2]
[363647383,1748797843230,-3000.0,0.0002129,2]
[363647385,1748797843240,-1000.0,0.00021292,2]
[363647387,1748797843250,-3000.0,0.000213,2]
[363647389,1748797843259,-392.62,0.000213,2]
[363647391,1748797843269,-3000.0,0.0002131,2]
[363647393,1748797843278,-3000.0,0.0002132,2]
[363647395,1748797843287,-3000.0,0.0002133,2]
[363647397,1748797843297,-3000.0,0.0002134,2]
[363647399,1748797843307,-3000.0,0.0002135,2]
[363647401,1748797843316,-3000.0,0.0002136,2]
[363647403,1748797843326,-642.99,0.00021369,2]
[363647405,1748797843336,-786.52,0.00021369,2]
[363647407,1748797843345,-430.0,0.00021369,2]
[363647409,1748797843355,-874.47,0.00021369,2]
[363647411,1748797843365,-918.9,0.00021369,2]
[363647413,1748797843374,-430.0,0.00021369,2]
[363647415,1748797843384,-2076.33,0.00021369,2]
[363647417,1748797843393,-641.66,0.00021369,2]
[363647419,1748797843402,-543.79984346,0.00021369,2]
[363647421,1748797843412,-733.18,0.00021369,2]
[363647423,1748797843422,-431.62,0.00021369,2]
[363647425,1748797843432,-3000.0,0.0002137,2]
[363647427,1748797843441,-4202.395678,0.0002138,2]
[363647429,1748797843451,-3341.85567453,0.00021403,2]
[363647431,1748797843461,-168.73407253,0.0002142,2]
[363647433,1748797843470,-500.16902464,0.0002142,2]
[363647435,1748797843479,-823.0,0.00021432,2]
[363647437,1748797843490,-823.0,0.00021435,2]
[363647439,1748797843499,-3283.61779182,0.00021486,5]
[363647441,1748797843511,-151.0,0.000215,3]
[363647443,1748797843523,-151.0,0.000216,4]
[363647444,1748797843533,-500.0,0.0002162,2]
[363647446,1748797843542,-165.42858455,0.00021633,2]
[363647448,1748797843553,-642.99,0.00021643,2]
[363647451,1748797843564,-786.52,0.00021643,2]
[363647452,1748797843574,-430.0,0.00021643,2]
[363647454,1748797843583,-874.47,0.00021643,2]
[363647456,1748797843594,-918.9,0.00021643,2]
[363647458,1748797843604,-430.0,0.00021643,2]
[363647460,1748797843614,-2076.33,0.00021643,2]
[363647462,1748797843623,-641.66,0.00021643,2]
[363647464,1748797843633,-733.18,0.00021643,2]
[363647466,1748797843644,-182.0,0.000217,2]
[363647468,1748797843653,-182.0,0.000217,2]
[363647470,1748797843662,-182.0,0.000217,2]
[363647472,1748797843672,-182.0,0.000217,2]
[363647474,1748797843681,-3283.61779182,0.00021728,5]
[363647476,1748797843690,-655.21786445,0.00021748,2]
[363647489,1748797843805,-151.0,0.000218,3]
[363647491,1748797843816,-1500.0,0.0002184,2]
[363647493,1748797843826,-2109.92,0.0002189,2]
[363647495,1748797843835,-2109.92,0.0002189,2]
[363647497,1748797843846,-2109.92,0.0002189,2]
[363647499,1748797843855,-2109.92,0.0002189,2]
[363647502,1748797843865,-2109.92,0.0002189,2]
[363647503,1748797843875,-2109.92,0.0002189,2]
[363647506,1748797843885,-2109.92,0.0002189,2]
[363647508,1748797843894,-2109.92,0.0002189,2]
[363647510,1748797843904,-2109.92,0.0002189,2]
[363647512,1748797843914,-2109.92,0.0002189,2]
[363647514,1748797843925,-2109.92,0.0002189,2]
[363647516,1748797843935,-2109.92,0.0002189,2]
[363647518,1748797843944,-2109.92,0.0002189,2]
[363647520,1748797843954,-2109.92,0.0002189,2]
[363647522,1748797843965,-2109.92,0.0002189,2]
[363647524,1748797843974,-2109.92,0.0002189,2]
[363647526,1748797843984,-2109.92,0.0002189,2]
[363647528,1748797843993,-2109.92,0.0002189,2]
[363647530,1748797844003,-2109.92,0.0002189,2]
[363647532,1748797844012,-2109.92,0.0002189,2]
[363647534,1748797844021,-151.0,0.000219,4]
[363647537,1748797844037,-3183.3,0.000219,2]
[363647539,1748797844052,-642.99,0.00021917,2]
[363647541,1748797844063,-2109.92,0.00021917,2]
[363647543,1748797844074,-786.52,0.00021917,2]
[363647545,1748797844084,-430.0,0.00021917,2]
[363647547,1748797844094,-874.47,0.00021917,2]
[363647549,1748797844104,-918.9,0.00021917,2]
[363647552,1748797844116,-430.0,0.00021917,2]
[363647554,1748797844127,-2076.33,0.00021917,2]
[363647556,1748797844137,-641.66,0.00021917,2]
[363647558,1748797844147,-733.18,0.00021917,2]
[363647560,1748797844157,-182.15453462,0.00021917,2]
[363647562,1748797844167,-150.0,0.00021918,2]
[363647564,1748797844177,-364.3782178,0.00021945,2]
[363647566,1748797844187,-364.3782178,0.00021945,2]
[363647568,1748797844199,-3283.61779182,0.00021969,6]
[363647570,1748797844209,-126944.92,0.00022,7]
[363647572,1748797844219,-198.0,0.00022,2]
[363647574,1748797844228,-1000.0,0.00022168,2]
[363647576,1748797844238,-9859.40490574,0.00022174,2]
[363647578,1748797844249,-5000.0,0.00022174,2]
[363647580,1748797844259,-5000.0,0.00022174,2]
[363647582,1748797844269,-5000.0,0.00022174,2]
[363647584,1748797844279,-5000.0,0.00022174,2]
[363647586,1748797844290,-154.67873888,0.00022184,2]
[363647588,1748797844300,-300.0,0.00022184,2]
[363647591,1748797844310,-800.0,0.00022184,2]
[363647593,1748797844320,-800.0,0.00022184,2]
[363647595,1748797844330,-300.0,0.00022184,2]
[363647597,1748797844339,-800.0,0.00022184,2]
[363647599,1748797844350,-207.4,0.00022184,2]
[363647601,1748797844360,-300.0,0.00022184,2]
[363647603,1748797844370,-300.0,0.00022184,2]
[363647605,1748797844380,-800.0,0.00022184,2]
[363647607,1748797844391,-5000.0,0.00022184,2]
[363647609,1748797844400,-300.0,0.00022184,2]
[363647611,1748797844410,-800.0,0.00022184,2]
[363647613,1748797844420,-300.0,0.00022184,2]
[363647615,1748797844431,-800.0,0.00022184,2]
[363647617,1748797844441,-300.0,0.00022184,2]
[363647619,1748797844451,-300.0,0.00022184,2]
[363647621,1748797844461,-800.0,0.00022184,2]
[363647623,1748797844471,-300.0,0.00022184,2]
[363647625,1748797844481,-800.0,0.00022184,2]
[363647627,1748797844492,-300.0,0.00022184,2]
[363647629,1748797844502,-800.0,0.00022184,2]
[363647631,1748797844515,-300.0,0.00022184,2]
[363647633,1748797844525,-800.0,0.00022184,2]
[363647635,1748797844535,-300.0,0.00022184,2]
[363647637,1748797844544,-800.0,0.00022184,2]
[363647639,1748797844555,-300.0,0.00022184,2]
[363647641,1748797844564,-800.0,0.00022184,2]
[363647643,1748797844574,-300.0,0.00022184,2]
[363647645,1748797844583,-800.0,0.00022184,2]
[363647647,1748797844594,-300.0,0.00022184,2]
[363647649,1748797844604,-701.76279037,0.00022184,2]
[363647651,1748797844614,-642.99,0.00022191,2]
[363647653,1748797844624,-2109.92,0.00022191,2]
[363647655,1748797844634,-786.52,0.00022191,2]
[363647657,1748797844645,-153.35577583,0.00022191,2]
[363647659,1748797844654,-874.47,0.00022191,2]
[363647661,1748797844669,-918.9,0.00022191,2]
[363647664,1748797844680,-436.88,0.00022191,2]
[363647666,1748797844689,-2076.33,0.00022191,2]
[363647668,1748797844699,-641.66,0.00022191,2]
[363647670,1748797844711,-733.18,0.00022191,2]
[363647672,1748797844721,-198.0,0.00022192,7]
[363647673,1748797844730,-3283.61779182,0.0002221,6]
[363647676,1748797844741,-500.0,0.00022259,2]
[363647678,1748797844751,-250.55,0.000223,7]
[363647680,1748797844760,-1000.54762423,0.00022388,2]
[363647682,1748797844770,-151.0,0.000224,6]
[363647684,1748797844780,-151.0,0.000224,8]
[363647686,1748797844790,-151.0,0.000224,6]
[363647688,1748797844799,-3283.61779182,0.00022452,7]
[363647690,1748797844809,-642.99,0.00022465,2]
[363647692,1748797844819,-2109.92,0.00022465,2]
[363647694,1748797844828,-786.52,0.00022465,2]
[363647696,1748797844839,-874.47,0.00022465,2]
[363647698,1748797844849,-918.9,0.00022465,2]
[363647700,1748797844860,-2076.33,0.00022465,2]
[363647702,1748797844870,-641.66,0.00022465,2]
[363647704,1748797844880,-733.18,0.00022465,2]
[363647706,1748797844889,-950.45012509,0.00022557,2]
[363647708,1748797844899,-800.0,0.00022614,2]
[363647710,1748797844908,-3283.61779182,0.00022693,7]
[363647712,1748797844917,-165.42858455,0.00022695,2]
[363647714,1748797844927,-392.62,0.000227,7]
[363647716,1748797844937,-369.90684858,0.00022716,2]
[363647718,1748797844947,-5000.0,0.00022732,2]
[363647720,1748797844956,-643.09843333,0.00022739,2]
[363647722,1748797844965,-2110.02376269,0.00022739,2]
[363647724,1748797844975,-786.73,0.00022739,2]
[363647726,1748797844984,-874.51032006,0.00022739,2]
[363647728,1748797844995,-919.06932414,0.00022739,2]
[363647730,1748797845011,-2076.518187,0.00022739,2]
[363647732,1748797845021,-641.87,0.00022739,2]
[363647734,1748797845031,-733.26616505,0.00022739,2]
[363647736,1748797845040,-250.0,0.00022867,2]
[363647738,1748797845051,-151.0,0.000229,5]
[363647740,1748797845060,-364.3782178,0.00022904,2]
[363647742,1748797845070,-2555.17,0.00022915,2]
[363647744,1748797845080,-3283.61779182,0.00022934,8]
[363647746,1748797845090,-41919.22,0.00022979,6]
[363647748,1748797845099,-30391.77,0.0002298,6]
[363647750,1748797845109,-122938.48,0.0002298,6]
[363647752,1748797845119,-405.0,0.00022991,2]
[363647754,1748797845131,-160.0,0.00023,3]
[363647756,1748797845141,-3341.85567453,0.00023,2]
[363647758,1748797845151,-423.51412927,0.00023,3]
[363647760,1748797845160,-229.3709046,0.00023,3]
[363647762,1748797845170,-198.0,0.00023014,7]
[363647764,1748797845180,-155.3651621,0.00023041,2]
[363647766,1748797845190,-126944.92,0.000231,7]
[363647768,1748797845200,-3183.3,0.000231,2]
[363647770,1748797845209,-151.0,0.000231,6]
[363647772,1748797845219,-3283.61779182,0.00023176,8]
[363647774,1748797845229,-151.0,0.000232,7]
[363647776,1748797845238,-151.0,0.000232,2]
[363647778,1748797845248,-151.0,0.000232,2]
[363647781,1748797845259,-151.0,0.000232,7]
[363647782,1748797845268,-151.0,0.000232,7]
[363647785,1748797845279,-5000.0,0.0002328,2]
[363647787,1748797845288,-1519.574592,0.00023372,3]
[363647789,1748797845299,-151.0,0.000234,9]
[363647791,1748797845309,-3283.61779182,0.00023417,9]
[363647793,1748797845320,-642.0,0.00023422,2]
[363647795,1748797845329,-215.0738,0.00023553,2]
[363647797,1748797845339,-500.0,0.00023583,4]
[363647799,1748797845349,-3695.69825899,0.00023628,2]
[363647801,1748797845359,-800.0,0.00023633,2]
[363647803,1748797845368,-3283.61779182,0.00023659,9]
[363647805,1748797845378,-800.0,0.0002368,2]
[363647807,1748797845388,-1740.08153917,0.00023699,2]
[363647809,1748797845397,-153.01,0.000237,31]
[363647811,1748797845407,-153.01,0.000237,31]
[363647813,1748797845416,-153.01,0.000237,31]
[363647815,1748797845429,-153.01,0.000237,31]
[363647818,1748797845438,-153.01,0.000237,31]
[363647821,1748797845449,-153.01,0.000237,31]
[363647824,1748797845459,-153.01,0.000237,31]
[363647827,1748797845468,-153.01,0.000237,31]
[363647829,1748797845478,-1740.08153913,0.00023705,2]
[363647831,1748797845488,-1740.08153913,0.00023712,2]
[363647833,1748797845497,-1740.08153913,0.00023718,2]
[363647835,1748797845508,-800.0,0.00023722,2]
[363647837,1748797845522,-1740.08153913,0.00023725,2]
[363647839,1748797845535,-1740.08153913,0.00023731,2]
[363647840,1748797845551,-800.0,0.00023737,2]
[363647841,1748797845562,-1740.08153913,0.00023738,2]
[363647842,1748797845572,-1740.08153913,0.00023744,2]
[363647844,1748797845582,-1740.08153913,0.00023751,2]
[363647846,1748797845593,-1740.08153913,0.00023757,2]
[363647848,1748797845603,-165.42858455,0.00023757,2]
[363647850,1748797845612,-500.0,0.00023773,2]
[363647852,1748797845622,-188.77363041,0.00023773,2]
[363647854,1748797845632,-499.08564506,0.00023773,2]
[363647856,1748797845642,-500.0,0.00023783,2]
[363647858,1748797845651,-800.0,0.00023789,2]
[363647860,1748797845661,-800.0,0.00023798,2]
[363647862,1748797845671,-10807.55566456,0.00023799,3]
[363647864,1748797845682,-143326.0962252,0.00023799,2]
[363647866,1748797845692,-205331.93865218,0.00023799,7]
[363647870,1748797845714,-667.27857388,0.00023799,7]
[363647874,1748797845751,-430.0,0.00016438,2]
[363647877,1748797845762,-430.0,0.00016438,2]
[363647879,1748797845771,-1230.69768222,0.00023799,7]
[363647881,1748797845787,-2545.00000004,0.00023799,7]
[363647883,1748797845799,-4533.76472575,0.00023799,7]
[363647886,1748797845810,-574.19670007,0.00023799,7]
[363647946,1748797846091,-189.0272702,0.00016438,2]
[363647950,1748797846101,-370.2327298,0.00016438,2]
[363647955,1748797846114,-59.7672702,0.00016438,2]
[363647958,1748797846123,-430.0,0.00016438,2]
[363647961,1748797846133,-431.19552518,0.00016438,2]
[363647965,1748797846143,-430.0,0.00016438,2]
[363647968,1748797846153,-158.14,0.00016712,2]
[363647972,1748797846163,-357.01,0.00016712,2]
[363647976,1748797846173,-430.0,0.00016712,2]
[363647980,1748797846183,-430.0,0.00016712,2]
[363647984,1748797846194,-445.27,0.00016986,2]
[363647988,1748797846203,-430.0,0.00016986,2]
[363647992,1748797846214,-262.5733953,0.0001726,2]
[363647999,1748797846230,-167.4266047,0.0001726,2]
[363648003,1748797846240,-430.0,0.00017534,2]
[363648006,1748797846250,-377.1734203,0.00017808,2]
[363648010,1748797846262,-52.8265797,0.00017808,2]
[363648013,1748797846272,-240.8617198,0.00019177,2]
[363648018,1748797846284,-59.1382802,0.00019177,2]
[363648021,1748797846294,-204.84805092,0.000206,2]
[363648075,1748797846644,-430.0,0.00018082,2]
[363648078,1748797846655,-430.0,0.00018356,2]
[363648080,1748797846665,-7001.14194908,0.000206,2]
[363648082,1748797846675,-420.0,0.00020899,2]
[363648083,1748797846685,-3224.03691406,0.000218,2]
[363648086,1748797846697,-440.85500005,0.000218,2]
[363649704,1748797863277,1144.2457,0.00024658,120]
[363650350,1748798326605,5000.0,0.0001555,2]
[363650355,1748798627797,168.91823,0.00013699,2]
[363650358,1748798684266,340.6903235,0.0001544,2]
[363650365,1748798840127,-5460.24873523,0.00015639,2]
[363650366,1748798842074,-1476.25497457,0.00015639,2]
[363650367,1748798842095,-184.55773626,0.00015945,2]
[363650368,1748798842116,-73.93857609,0.00016338,2]
[363650404,1748799032802,-546.50562813,0.00016172,2]
[363650405,1748799032819,-3119.28151844,0.00016172,2]
[363650406,1748799032828,-205.5825627,0.00016238,2]
[363650407,1748799032838,-184.89945376,0.00016338,2]
[363650408,1748799032848,-300.0,0.00016434,2]
[363650409,1748799032857,-300.0,0.00016434,2]
[363650410,1748799032868,-1200.0,0.00016434,2]
[363650411,1748799032878,-15101.31958239,0.00016435,2]
[363650412,1748799032888,-300.0,0.00016436,2]
[363650413,1748799032901,-383.61669435,0.00016436,2]
[363650414,1748799032910,-500.0,0.00016436,2]
[363650415,1748799032920,-500.0,0.00016436,2]
[363650416,1748799032929,-500.0,0.00016437,2]
[363650417,1748799032939,-500.0,0.00016437,2]
[363650418,1748799032949,-500.0,0.00016437,2]
[363650419,1748799032958,-500.0,0.00016437,2]
[363650420,1748799032968,-500.0,0.00016437,2]
[363650421,1748799032979,-500.0,0.00016437,2]
[363650422,1748799032989,-186.27996152,0.00016437,2]
[363650423,1748799032998,-500.0,0.00016437,2]
[363650424,1748799033008,-500.0,0.00016437,2]
[363650425,1748799033018,-500.0,0.00016437,2]
[363650426,1748799033027,-500.0,0.00016437,2]
[363650427,1748799033037,-500.0,0.00016437,2]
[363650428,1748799033046,-623.66161557,0.00016437,2]
[363650429,1748799033056,-500.0,0.00016437,2]
[363650430,1748799033066,-500.0,0.00016437,2]
[363650431,1748799033077,-500.0,0.00016437,2]
[363650432,1748799033086,-500.0,0.00016437,2]
[363650433,1748799033096,-500.0,0.00016437,2]
[363650434,1748799033105,-1029.8030455,0.00016437,2]
[363650435,1748799033115,-1029.8030455,0.00016437,2]
[363650436,1748799033125,-1029.8030455,0.00016437,2]
[363650437,1748799033135,-1029.8030455,0.00016437,2]
[363650438,1748799033145,-1029.8030455,0.00016437,2]
[363650439,1748799033155,-1029.8030455,0.00016437,2]
[363650440,1748799033165,-1029.8030455,0.00016437,2]
[363650441,1748799033176,-1029.8030455,0.00016437,2]
[363650442,1748799033186,-1029.8030455,0.00016437,2]
[363650443,1748799033196,-1029.8030455,0.00016437,2]
[363650444,1748799033205,-1531.41678701,0.00016437,2]
[363650445,1748799033215,-300.0,0.00016437,2]
[363650446,1748799033224,-444.95620097,0.00016438,2]
[363650447,1748799033234,-430.0,0.00016438,2]
[363650448,1748799033244,-430.0,0.00016438,2]
[363650449,1748799033253,-488.63117572,0.00016438,2]
[363650450,1748799033263,-430.0,0.00016438,2]
[363650451,1748799033272,-430.0,0.00016438,2]
[363650452,1748799033281,-430.0,0.00016438,2]
[363650453,1748799033291,-430.0,0.00016438,2]
[363650454,1748799033300,-430.0,0.00016438,2]
[363650455,1748799033310,-430.0,0.00016438,2]
[363650456,1748799033320,-430.0,0.00016438,2]
[363650457,1748799033329,-430.0,0.00016438,2]
[363650458,1748799033339,-430.0,0.00016438,2]
[363650459,1748799033349,-430.0,0.00016438,2]
[363650460,1748799033359,-190.03003315,0.00016438,2]
[363650461,1748799033368,-430.0,0.00016438,2]
[363650462,1748799033379,-430.0,0.00016438,2]
[363650463,1748799033388,-375.07623181,0.00016438,2]
[363650464,1748799033398,-430.0,0.00016438,2]
[363650465,1748799033407,-430.0,0.00016438,2]
[363650466,1748799033417,-430.0,0.00016438,2]
[363650467,1748799033427,-430.0,0.00016438,2]
[363650468,1748799033436,-152.29221963,0.00016438,2]
[363650469,1748799033446,-430.0,0.00016438,2]
[363650470,1748799033456,-541.63613574,0.00016438,2]
[363650471,1748799033466,-430.0,0.00016438,2]
[363650472,1748799033476,-430.0,0.00016438,2]
[363650473,1748799033486,-371.97333098,0.00016438,2]
[363650474,1748799033496,-430.0,0.00016438,2]
[363650475,1748799033506,-430.0,0.00016438,2]
[363650476,1748799033515,-310.0,0.00016438,2]
[363650477,1748799033525,-342.97516346,0.00016438,2]
[363650478,1748799033535,-430.0,0.00016438,2]
[363650479,1748799033545,-430.0,0.00016438,2]
[363650480,1748799033555,-430.0,0.00016438,2]
[363650481,1748799033565,-430.0,0.00016438,2]
[363650482,1748799033576,-358.99036104,0.00016438,2]
[363650483,1748799033585,-430.0,0.00016438,2]
[363650484,1748799033595,-430.0,0.00016438,2]
[363650485,1748799033606,-430.0,0.00016438,2]
[363650486,1748799033615,-430.0,0.00016438,2]
[363650487,1748799033625,-430.0,0.00016438,2]
[363650488,1748799033635,-169.52483661,0.00016438,2]
[363650489,1748799033646,-430.0,0.00016438,2]
[363650490,1748799033657,-430.0,0.00016438,2]
[363650491,1748799033667,-430.0,0.00016438,2]
[363650492,1748799033678,-430.0,0.00016438,2]
[363650493,1748799033688,-430.0,0.00016438,2]
[363650494,1748799033698,-430.0,0.00016438,2]
[363650495,1748799033707,-430.0,0.00016438,2]
[363650496,1748799033716,-430.0,0.00016438,2]
[363650497,1748799033726,-430.0,0.00016438,2]
[363650498,1748799033737,-430.0,0.00016438,2]
[363650499,1748799033746,-430.0,0.00016438,2]
[363650500,1748799033756,-430.0,0.00016438,2]
[363650501,1748799033766,-430.0,0.00016438,2]
[363650502,1748799033776,-430.0,0.00016438,2]
[363650503,1748799033786,-430.0,0.00016438,2]
[363650504,1748799033796,-430.0,0.00016438,2]
[363650505,1748799033808,-430.0,0.00016438,2]
[363650506,1748799033818,-430.0,0.00016438,2]
[363650507,1748799033829,-430.0,0.00016438,2]
[363650508,1748799033838,-430.0,0.00016438,2]
[363650509,1748799033848,-430.0,0.00016438,2]
[363650510,1748799033858,-430.0,0.00016438,2]
[363650511,1748799033868,-430.0,0.00016438,2]
[363650512,1748799033878,-432.62414222,0.00016438,2]
[363650513,1748799033888,-430.0,0.00016438,2]
[363650514,1748799033901,-430.0,0.00016438,2]
[363650515,1748799033912,-430.0,0.00016438,2]
[363650516,1748799033922,-430.0,0.00016438,2]
[363650517,1748799033932,-430.0,0.00016438,2]
[363650518,1748799033942,-430.0,0.00016438,2]
[363650519,1748799033951,-430.0,0.00016438,2]
[363650520,1748799033961,-430.0,0.00016438,2]
[363650521,1748799033973,-430.0,0.00016438,2]
[363650522,1748799033983,-430.0,0.00016438,2]
[363650523,1748799033993,-430.0,0.00016438,2]
[363650524,1748799034003,-430.0,0.00016438,2]
[363650525,1748799034013,-430.0,0.00016438,2]
[363650526,1748799034023,-430.0,0.00016438,2]
[363650527,1748799034033,-430.0,0.00016438,2]
[363650528,1748799034042,-414.70472296,0.00016438,2]
[363650529,1748799034051,-430.0,0.00016438,2]
[363650530,1748799034060,-430.0,0.00016438,2]
[363650531,1748799034070,-430.0,0.00016438,2]
[363650532,1748799034080,-430.0,0.00016438,2]
[363650533,1748799034090,-430.0,0.00016438,2]
[363650534,1748799034101,-430.0,0.00016438,2]
[363650535,1748799034111,-430.0,0.00016438,2]
[363650536,1748799034121,-430.0,0.00016438,2]
[363650537,1748799034131,-326.93239264,0.00016438,2]
[363650538,1748799034142,-430.0,0.00016438,2]
[363650539,1748799034152,-430.0,0.00016438,2]
[363650540,1748799034162,-430.0,0.00016438,2]
[363650541,1748799034171,-430.0,0.00016438,2]
[363650542,1748799034182,-430.0,0.00016438,2]
[363650543,1748799034193,-437.35328955,0.00016438,2]
[363650544,1748799034202,-430.0,0.00016438,2]
[363650545,1748799034213,-430.0,0.00016438,2]
[363650546,1748799034223,-430.0,0.00016438,2]
[363650547,1748799034232,-430.0,0.00016438,2]
[363650548,1748799034242,-430.0,0.00016438,2]
[363650549,1748799034251,-430.0,0.00016438,2]
[363650550,1748799034262,-430.0,0.00016438,2]
[363650551,1748799034271,-430.0,0.00016438,2]
[363650552,1748799034282,-430.0,0.00016438,2]
[363650553,1748799034292,-430.0,0.00016438,2]
[363650554,1748799034302,-430.0,0.00016438,2]
[363650555,1748799034312,-430.0,0.00016438,2]
[363650556,1748799034322,-430.0,0.00016438,2]
[363650557,1748799034332,-491.43523632,0.00016438,2]
[363650558,1748799034342,-475.2108519,0.00016438,2]
[363650559,1748799034351,-430.0,0.00016438,2]
[363650560,1748799034361,-430.0,0.00016438,2]
[363650561,1748799034371,-430.0,0.00016438,2]
[363650562,1748799034382,-430.0,0.00016438,2]
[363650563,1748799034392,-430.0,0.00016438,2]
[363650564,1748799034402,-430.0,0.00016438,2]
[363650565,1748799034412,-430.0,0.00016438,2]
[363650566,1748799034422,-430.0,0.00016438,2]
[363650567,1748799034431,-430.0,0.00016438,2]
[363650568,1748799034441,-528.69121244,0.00016438,2]
[363650569,1748799034451,-430.0,0.00016438,2]